{"text_format":"3","workbook":"xlsx","n_sheets":1,"sheets":["ΑΝΑΦΟΡΑ ΕΞΟΔΩΝ"],"not_rendered":{"defined_names":4},"read":"whole","date_system":"1900"}

{"sheet":"ΑΝΑΦΟΡΑ ΕΞΟΔΩΝ","index":0,"n_rows":22,"n_cols":12,"rows_kept":22,"merged":[[1,2,1,3],[1,5,1,6],[3,2,3,3],[3,6,3,7],[3,10,3,11],[4,2,4,3],[4,6,4,7],[4,10,4,11],[20,2,20,4],[20,6,20,8],[21,2,21,4],[21,6,21,8]]}
[null,"ΑΝΑΦΟΡΑ ΕΞΟΔΩΝ",{"$nulls":8},"Μόνο για χρήση γραφείου"]
[null,"ΣΚΟΠΟΣ:",null,null,"ΑΡΙΘΜΟΣ ΠΑΡΑΣΤΑΤΙΚΟΥ:",null,null,"ΠΕΡΙΟΔΟΣ ΠΛΗΡΩΜΗΣ","ΑΠΟ:",{"$f":"IF(COUNTA(ΔεδομέναΕξόδων[Ημερομηνία])=0,\"\",MIN(ΔεδομέναΕξόδων[Ημερομηνία]))","v":""},"ΠΡΟΣ:",{"$f":"IF(COUNTA(ΔεδομέναΕξόδων[Ημερομηνία])=0,\"\",MAX(ΔεδομέναΕξόδων[Ημερομηνία]))","v":""}]
[null,"ΣΤΟΙΧΕΙΑ ΥΠΑΛΛΗΛΟΥ:"]
[null,"ΟΝΟΜΑ",{"$nulls":3},"ΘΕΣΗ",{"$nulls":3},"ΑΜΚΑ"]
[null,"ΤΜΗΜΑ",{"$nulls":3},"ΠΡΟΪΣΤΑΜΕΝΟΣ",{"$nulls":3},"ΑΝΑΓΝΩΡΙΣΤΙΚΟ ΥΠΑΛΛΗΛΟΥ"]
[]
[null,"Ημερομηνία","Λογαριασμός","Περιγραφή","Ξενοδοχείο","Οδοιπορικά","Καύσιμα","Γεύματα","Τηλέφωνο","Ψυχαγωγία","Διάφορα","Σύνολο"]
[{"$nulls":11},{"$f":"SUM(ΔεδομέναΕξόδων[[#This Row],[Ξενοδοχείο]:[Διάφορα]])","v":{"v":0,"d":"0.00 €"}}]
[{"$nulls":11},{"$f":"SUM(ΔεδομέναΕξόδων[[#This Row],[Ξενοδοχείο]:[Διάφορα]])","v":{"v":0,"d":"0.00 €"}}]
[{"$nulls":11},{"$f":"SUM(ΔεδομέναΕξόδων[[#This Row],[Ξενοδοχείο]:[Διάφορα]])","v":{"v":0,"d":"0.00 €"}}]
[{"$nulls":11},{"$f":"SUM(ΔεδομέναΕξόδων[[#This Row],[Ξενοδοχείο]:[Διάφορα]])","v":{"v":0,"d":"0.00 €"}}]
[{"$nulls":11},{"$f":"SUM(ΔεδομέναΕξόδων[[#This Row],[Ξενοδοχείο]:[Διάφορα]])","v":{"v":0,"d":"0.00 €"}}]
[{"$nulls":11},{"$f":"SUM(ΔεδομέναΕξόδων[[#This Row],[Ξενοδοχείο]:[Διάφορα]])","v":{"v":0,"d":"0.00 €"}}]
[{"$nulls":11},{"$f":"SUM(ΔεδομέναΕξόδων[[#This Row],[Ξενοδοχείο]:[Διάφορα]])","v":{"v":0,"d":"0.00 €"}}]
[{"$nulls":11},{"$f":"SUM(ΔεδομέναΕξόδων[[#This Row],[Ξενοδοχείο]:[Διάφορα]])","v":{"v":0,"d":"0.00 €"}}]
[{"$nulls":11},{"$f":"SUM(ΔεδομέναΕξόδων[[#This Row],[Ξενοδοχείο]:[Διάφορα]])","v":{"v":0,"d":"0.00 €"}}]
[{"$nulls":11},{"$f":"SUM(ΔεδομέναΕξόδων[[#This Row],[Ξενοδοχείο]:[Διάφορα]])","v":{"v":0,"d":"0.00 €"}}]
[{"$nulls":11},{"$f":"SUM(ΔεδομέναΕξόδων[[#This Row],[Ξενοδοχείο]:[Διάφορα]])","v":{"v":0,"d":"0.00 €"}}]
[null,"Σύνολο",null,null,{"$f":"SUBTOTAL(109,ΔεδομέναΕξόδων[Ξενοδοχείο])","v":{"v":0,"d":"0.00 €"}},{"$f":"SUBTOTAL(109,ΔεδομέναΕξόδων[Οδοιπορικά])","v":{"v":0,"d":"0.00 €"}},{"$f":"SUBTOTAL(109,ΔεδομέναΕξόδων[Καύσιμα])","v":{"v":0,"d":"0.00 €"}},{"$f":"SUBTOTAL(109,ΔεδομέναΕξόδων[Γεύματα])","v":{"v":0,"d":"0.00 €"}},{"$f":"SUBTOTAL(109,ΔεδομέναΕξόδων[Τηλέφωνο])","v":{"v":0,"d":"0.00 €"}},{"$f":"SUBTOTAL(109,ΔεδομέναΕξόδων[Ψυχαγωγία])","v":{"v":0,"d":"0.00 €"}},{"$f":"SUBTOTAL(109,ΔεδομέναΕξόδων[Διάφορα])","v":{"v":0,"d":"0.00 €"}},{"$f":"SUBTOTAL(109,ΔεδομέναΕξόδων[Σύνολο])","v":{"v":0,"d":"0.00 €"}}]
[{"$nulls":10},"ΜΕΡΙΚΟ ΑΘΡΟΙΣΜΑ",{"$f":"ΔεδομέναΕξόδων[[#Totals],[Σύνολο]]","v":{"v":0,"d":"0.00 €"}}]
[null,"ΕΓΚΡΙΣΗ:",{"$nulls":3},"ΣΗΜΕΙΩΣΕΙΣ: ",{"$nulls":4},"ΠΡΟΚΑΤΑΒΟΛΕΣ",{"v":0,"d":"0.00 €"}]
[{"$nulls":10},"ΣΥΝΟΛΟ",{"$f":"Μερικό_άθροισμα-Προκαταβολές","v":{"v":0,"d":"0.00 €"}}]